[Event "Late-Titled-Tuesday-Blitz-October-03-2023"]
[Site "Chess.com"]
[Date "2023.10.03"]
[Round "2"]
[White "Leebit02"]
[Black "CarrotsandPizza"]
[Result "1-0"]
[WhiteElo "2500"]
[BlackElo "2289"]
[TimeControl "180+1"]
[EndTime "14:16:46 PDT"]
[Termination "Leebit02 won by checkmate"]

1. e4 {[%clk 0:03:00.9]} 1... c5 {[%clk 0:02:55.9]} 2. Nf3 {[%clk 0:03:00.6]}
2... Qb6 {[%clk 0:02:56.2]} 3. Nc3 {[%clk 0:02:57.8]} 3... Nc6 {[%clk
0:02:51.1]} 4. Be2 {[%clk 0:02:44.8]} 4... e6 {[%clk 0:02:51.6]} 5. O-O {[%clk
0:02:44.7]} 5... a6 {[%clk 0:02:52.1]} 6. b3 {[%clk 0:02:41.8]} 6... d6 {[%clk
0:02:52.7]} 7. Bb2 {[%clk 0:02:40.6]} 7... Nf6 {[%clk 0:02:53.2]} 8. Re1 {[%clk
0:02:32.3]} 8... Be7 {[%clk 0:02:53.7]} 9. Bf1 {[%clk 0:02:29.1]} 9... O-O
{[%clk 0:02:54.3]} 10. a4 {[%clk 0:02:24.5]} 10... Bd7 {[%clk 0:02:54.3]} 11. d3
{[%clk 0:02:02.2]} 11... Rfd8 {[%clk 0:02:53.8]} 12. Qd2 {[%clk 0:01:58.9]}
12... Rac8 {[%clk 0:02:53.9]} 13. Ne2 {[%clk 0:01:55.5]} 13... h6 {[%clk
0:02:53.9]} 14. a5 {[%clk 0:01:55.1]} 14... Qc7 {[%clk 0:02:53.4]} 15. Ng3
{[%clk 0:01:54.2]} 15... Be8 {[%clk 0:02:53.6]} 16. c3 {[%clk 0:01:42.7]} 16...
Nxa5 {[%clk 0:02:53]} 17. Qc2 {[%clk 0:01:38.1]} 17... Nc6 {[%clk 0:02:53.1]}
18. Rad1 {[%clk 0:01:24.7]} 18... Qb6 {[%clk 0:02:53.3]} 19. Ba1 {[%clk
0:01:15.6]} 19... Na5 {[%clk 0:02:53.5]} 20. Rb1 {[%clk 0:01:15.7]} 20... Nc6
{[%clk 0:02:53.9]} 21. Qd2 {[%clk 0:01:14.6]} 21... Kh8 {[%clk 0:02:54.3]} 22.
d4 {[%clk 0:01:14.6]} 22... cxd4 {[%clk 0:02:53]} 23. cxd4 {[%clk 0:01:15.2]}
23... Nb4 {[%clk 0:02:53.5]} 24. Bc3 {[%clk 0:01:12.8]} 24... a5 {[%clk
0:02:50.2]} 25. Rec1 {[%clk 0:01:02.8]} 25... d5 {[%clk 0:02:50.6]} 26. e5
{[%clk 0:01:02.4]} 26... Ne4 {[%clk 0:02:50.2]} 27. Nxe4 {[%clk 0:00:53]} 27...
dxe4 {[%clk 0:02:51.1]} 28. Ne1 {[%clk 0:00:53.2]} 28... Bc6 {[%clk 0:02:50.7]}
29. Bc4 {[%clk 0:00:52]} 29... Bd5 {[%clk 0:02:38.4]} 30. Qe2 {[%clk 0:00:51]}
30... Bg5 {[%clk 0:02:28.1]} 31. Rd1 {[%clk 0:00:48.3]} 31... Qc6 {[%clk
0:02:09.2]} 32. Bxb4 {[%clk 0:00:34.8]} 32... axb4 {[%clk 0:02:04.9]} 33. Bb5
{[%clk 0:00:29.4]} 33... Qb6 {[%clk 0:02:04]} 34. g3 {[%clk 0:00:26.7]} 34...
Rc3 {[%clk 0:02:03.7]} 35. h4 {[%clk 0:00:25.2]} 35... Be7 {[%clk 0:01:56.2]}
36. Ng2 {[%clk 0:00:20.1]} 36... Bxb3 {[%clk 0:01:53.9]} 37. Rdc1 {[%clk
0:00:19.2]} 37... Rdc8 {[%clk 0:01:48.8]} 38. Rxc3 {[%clk 0:00:17.4]} 38... Rxc3
{[%clk 0:01:49.7]} 39. Ne3 {[%clk 0:00:17.6]} 39... Qxd4 {[%clk 0:01:34.8]} 40.
Be8 {[%clk 0:00:18.1]} 40... Kg8 {[%clk 0:01:27.8]} 41. Qh5 {[%clk 0:00:18.2]}
41... g6 {[%clk 0:01:08.4]} 42. Qxh6 {[%clk 0:00:18.8]} 42... Qxe5 {[%clk
0:01:06.5]} 43. Ng4 {[%clk 0:00:18.1]} 43... Qg7 {[%clk 0:01:06.7]} 44. Qf4
{[%clk 0:00:18.2]} 44... Rc8 {[%clk 0:01:00.5]} 45. Bxf7+ {[%clk 0:00:18.4]}
45... Qxf7 {[%clk 0:01:00.2]} 46. Nh6+ {[%clk 0:00:18.7]} 46... Kg7 {[%clk
0:00:57.1]} 47. Qxf7+ {[%clk 0:00:19.4]} 47... Kxh6 {[%clk 0:00:57.6]} 48. Qxe7
{[%clk 0:00:20]} 48... Bd5 {[%clk 0:00:55.5]} 49. Qg5+ {[%clk 0:00:20.4]} 49...
Kg7 {[%clk 0:00:55.2]} 50. Rxb4 {[%clk 0:00:20.9]} 50... Rc7 {[%clk 0:00:55.8]}
51. Qe5+ {[%clk 0:00:20.2]} 51... Kf7 {[%clk 0:00:55.4]} 52. Qxc7+ {[%clk
0:00:21]} 52... Kf6 {[%clk 0:00:55.7]} 53. Qf4+ {[%clk 0:00:20.9]} 53... Ke7
{[%clk 0:00:56.5]} 54. Rb6 {[%clk 0:00:21.3]} 54... Kd7 {[%clk 0:00:56.7]} 55.
Qe5 {[%clk 0:00:21.6]} 55... Ke8 {[%clk 0:00:57.6]} 56. Rxe6+ {[%clk 0:00:21.5]}
56... Bxe6 {[%clk 0:00:57.1]} 57. Qxe6+ {[%clk 0:00:22.2]} 57... Kd8 {[%clk
0:00:58]} 58. Qxe4 {[%clk 0:00:22.7]} 58... Kc7 {[%clk 0:00:58.9]} 59. Qxg6
{[%clk 0:00:23.2]} 59... b5 {[%clk 0:00:59.2]} 60. h5 {[%clk 0:00:23.9]} 60...
b4 {[%clk 0:00:59.4]} 61. h6 {[%clk 0:00:24.6]} 61... b3 {[%clk 0:01:00.3]} 62.
h7 {[%clk 0:00:25.2]} 62... b2 {[%clk 0:01:01.2]} 63. h8=Q {[%clk 0:00:25.1]}
63... b1=Q+ {[%clk 0:01:02.1]} 64. Qxb1 {[%clk 0:00:25.1]} 64... Kc6 {[%clk
0:01:01.6]} 65. Qf5 {[%clk 0:00:24.4]} 65... Kb7 {[%clk 0:01:01.1]} 66. Qh6
{[%clk 0:00:24.5]} 66... Ka8 {[%clk 0:01:02]} 67. Qf7 {[%clk 0:00:24.4]} 67...
Kb8 {[%clk 0:01:02.3]} 68. Qhf8# {[%clk 0:00:25.1]} 1-0

[Event "Late-Titled-Tuesday-Blitz-October-03-2023"]
[Site "Chess.com"]
[Date "2023.10.03"]
[Round "2"]
[White "Msb2"]
[Black "biostatistician"]
[Result "1-0"]
[WhiteElo "3068"]
[BlackElo "2618"]
[TimeControl "180+1"]
[EndTime "14:16:47 PDT"]
[Termination "Msb2 won on time"]

1. d4 {[%clk 0:03:00.9]} 1... Nf6 {[%clk 0:02:59.7]} 2. c4 {[%clk 0:03:01.2]}
2... g6 {[%clk 0:03:00]} 3. Nc3 {[%clk 0:03:01.6]} 3... Bg7 {[%clk 0:03:00.5]}
4. e4 {[%clk 0:03:02.2]} 4... d6 {[%clk 0:03:01]} 5. Nf3 {[%clk 0:03:03.1]} 5...
O-O {[%clk 0:03:01.5]} 6. Be2 {[%clk 0:03:03.7]} 6... e5 {[%clk 0:03:01.4]} 7.
Be3 {[%clk 0:03:04.5]} 7... Nbd7 {[%clk 0:02:59.5]} 8. O-O {[%clk 0:03:04.3]}
8... Ng4 {[%clk 0:02:58.5]} 9. Bg5 {[%clk 0:03:04.2]} 9... f6 {[%clk 0:02:58.9]}
10. Bd2 {[%clk 0:03:04.6]} 10... c6 {[%clk 0:02:57.1]} 11. Qc2 {[%clk
0:03:04.6]} 11... f5 {[%clk 0:02:52.5]} 12. dxe5 {[%clk 0:03:01]} 12... dxe5
{[%clk 0:02:48.4]} 13. exf5 {[%clk 0:02:47.5]} 13... gxf5 {[%clk 0:02:48.2]} 14.
h3 {[%clk 0:02:30.1]} 14... Nh6 {[%clk 0:02:31.2]} 15. Bg5 {[%clk 0:01:33.6]}
15... Qe8 {[%clk 0:02:28]} 16. Rad1 {[%clk 0:01:32.6]} 16... Nf6 {[%clk
0:02:17.7]} 17. Qc1 {[%clk 0:01:32.7]} 17... Nf7 {[%clk 0:02:15.2]} 18. c5
{[%clk 0:01:33.1]} 18... Nxg5 {[%clk 0:02:05.9]} 19. Nxg5 {[%clk 0:01:07.7]}
19... Qg6 {[%clk 0:01:50.6]} 20. Bc4+ {[%clk 0:01:06.2]} 20... Kh8 {[%clk
0:01:50.6]} 21. Nf3 {[%clk 0:01:07.1]} 21... Nh5 {[%clk 0:01:40]} 22. Rd6 {[%clk
0:01:06.2]} 22... Qe8 {[%clk 0:01:29.5]} 23. Re1 {[%clk 0:01:04.4]} 23... e4
{[%clk 0:01:20.6]} 24. Ng5 {[%clk 0:01:02.9]} 24... Be5 {[%clk 0:01:05.6]} 25.
Bf7 {[%clk 0:00:53.8]} 25... Rxf7 {[%clk 0:01:00.9]} 26. Rd8 {[%clk 0:00:53.8]}
26... Be6 {[%clk 0:00:39.5]} 27. Rxe8+ {[%clk 0:00:49.3]} 27... Rxe8 {[%clk
0:00:39.3]} 28. Nxf7+ {[%clk 0:00:49.7]} 28... Bxf7 {[%clk 0:00:40.2]} 29. Qg5
{[%clk 0:00:48.8]} 29... Bg6 {[%clk 0:00:28.8]} 30. Rd1 {[%clk 0:00:40.8]} 30...
Bf6 {[%clk 0:00:15.7]} 31. Qd2 {[%clk 0:00:40.4]} 31... Re7 {[%clk 0:00:15.1]}
32. Qd8+ {[%clk 0:00:40.2]} 32... Kg7 {[%clk 0:00:15.4]} 33. Rd7 {[%clk
0:00:40.5]} 33... Kf7 {[%clk 0:00:12]} 34. Rxe7+ {[%clk 0:00:40.2]} 34... Bxe7
{[%clk 0:00:12.9]} 35. Qd7 {[%clk 0:00:40.4]} 35... Nf4 {[%clk 0:00:12]} 36.
Qxb7 {[%clk 0:00:39]} 36... Nd3 {[%clk 0:00:12.1]} 37. Qxc6 {[%clk 0:00:37.3]}
37... Bxc5 {[%clk 0:00:12.2]} 38. Qd5+ {[%clk 0:00:35.6]} 38... Kg7 {[%clk
0:00:12.4]} 39. Nd1 {[%clk 0:00:35.7]} 39... f4 {[%clk 0:00:10.2]} 40. Kf1
{[%clk 0:00:30.1]} 40... e3 {[%clk 0:00:04.7]} 41. fxe3 {[%clk 0:00:31]} 41...
fxe3 {[%clk 0:00:05.6]} 42. Nc3 {[%clk 0:00:31.6]} 42... Bb6 {[%clk 0:00:02.4]}
43. Ne2 {[%clk 0:00:31.6]} 1-0

[Event "Late-Titled-Tuesday-Blitz-October-03-2023"]
[Site "Chess.com"]
[Date "2023.10.03"]
[Round "2"]
[White "jimis98"]
[Black "traack"]
[Result "1-0"]
[WhiteElo "2698"]
[BlackElo "2422"]
[TimeControl "180+1"]
[EndTime "14:16:48 PDT"]
[Termination "jimis98 won by checkmate"]

1. d4 {[%clk 0:02:54]} 1... Nf6 {[%clk 0:02:55.9]} 2. Nc3 {[%clk 0:02:51.5]}
2... d5 {[%clk 0:02:55.3]} 3. Bf4 {[%clk 0:02:51.5]} 3... c5 {[%clk 0:02:41.3]}
4. e4 {[%clk 0:02:42.6]} 4... dxe4 {[%clk 0:02:33.1]} 5. d5 {[%clk 0:01:59.7]}
5... g6 {[%clk 0:02:25.1]} 6. Nge2 {[%clk 0:01:33.9]} 6... Bg7 {[%clk
0:02:20.7]} 7. Ng3 {[%clk 0:01:33.6]} 7... Qa5 {[%clk 0:02:09.7]} 8. Bc4 {[%clk
0:01:04]} 8... a6 {[%clk 0:01:39.7]} 9. a4 {[%clk 0:01:02.6]} 9... Qb4 {[%clk
0:01:36.5]} 10. Be2 {[%clk 0:00:29.1]} 10... Qxb2 {[%clk 0:01:05.9]} 11. Bd2
{[%clk 0:00:27]} 11... e3 {[%clk 0:01:05.2]} 12. fxe3 {[%clk 0:00:26.3]} 12...
Nfd7 {[%clk 0:00:45.9]} 13. Rb1 {[%clk 0:00:23.5]} 13... Bxc3 {[%clk 0:00:40.9]}
14. Rxb2 {[%clk 0:00:23.6]} 14... Bxb2 {[%clk 0:00:41.8]} 15. O-O {[%clk
0:00:23.4]} 15... O-O {[%clk 0:00:41.3]} 16. c4 {[%clk 0:00:23]} 16... Be5
{[%clk 0:00:37.8]} 17. Qb3 {[%clk 0:00:20]} 17... a5 {[%clk 0:00:35.4]} 18. Bc3
{[%clk 0:00:18]} 18... Na6 {[%clk 0:00:32]} 19. Bxa5 {[%clk 0:00:13.4]} 19... b6
{[%clk 0:00:28.9]} 20. Bc3 {[%clk 0:00:12.9]} 20... Bxc3 {[%clk 0:00:27.1]} 21.
Qxc3 {[%clk 0:00:13.8]} 21... Nb4 {[%clk 0:00:27.8]} 22. Ra1 {[%clk 0:00:12.6]}
22... Nf6 {[%clk 0:00:21.4]} 23. e4 {[%clk 0:00:12.3]} 23... Bd7 {[%clk
0:00:18.9]} 24. e5 {[%clk 0:00:12.5]} 24... Ne8 {[%clk 0:00:18.9]} 25. h4 {[%clk
0:00:12.8]} 25... Nc7 {[%clk 0:00:16.2]} 26. h5 {[%clk 0:00:12.8]} 26... Ra7
{[%clk 0:00:11.3]} 27. h6 {[%clk 0:00:13]} 27... e6 {[%clk 0:00:09.9]} 28. d6
{[%clk 0:00:11.1]} 28... Nca6 {[%clk 0:00:10.3]} 29. Ne4 {[%clk 0:00:09.4]}
29... Nb8 {[%clk 0:00:10.4]} 30. Nf6+ {[%clk 0:00:09.7]} 30... Kh8 {[%clk
0:00:09.1]} 31. Qf3 {[%clk 0:00:10.2]} 31... Bc6 {[%clk 0:00:08.6]} 32. Qf4
{[%clk 0:00:09.7]} 32... Nd7 {[%clk 0:00:09.2]} 33. Nxd7 {[%clk 0:00:09.5]}
33... f5 {[%clk 0:00:09]} 34. Nxf8 {[%clk 0:00:09.5]} 34... Nc2 {[%clk
0:00:08.5]} 35. Qg5 {[%clk 0:00:07.1]} 35... Rf7 {[%clk 0:00:09]} 36. Nxe6
{[%clk 0:00:07.2]} 36... Nd4 {[%clk 0:00:08.7]} 37. Qd8+ {[%clk 0:00:07.5]}
37... Be8 {[%clk 0:00:09]} 38. Qxe8+ {[%clk 0:00:07.9]} 38... Rf8 {[%clk
0:00:09.8]} 39. Qxf8# {[%clk 0:00:08.6]} 1-0

[Event "Late-Titled-Tuesday-Blitz-October-03-2023"]
[Site "Chess.com"]
[Date "2023.10.03"]
[Round "2"]
[White "SergioMoralesG"]
[Black "talaicito"]
[Result "1-0"]
[WhiteElo "2445"]
[BlackElo "2173"]
[TimeControl "180+1"]
[EndTime "14:16:50 PDT"]
[Termination "SergioMoralesG won on time"]

1. d4 {[%clk 0:02:51.9]} 1... e6 {[%clk 0:02:59.3]} 2. c4 {[%clk 0:02:50.9]}
2... f5 {[%clk 0:02:59.9]} 3. Nf3 {[%clk 0:02:50.9]} 3... Nf6 {[%clk 0:03:00.5]}
4. g3 {[%clk 0:02:51.6]} 4... Be7 {[%clk 0:03:01.1]} 5. Bg2 {[%clk 0:02:52.1]}
5... O-O {[%clk 0:03:01.8]} 6. O-O {[%clk 0:02:52.7]} 6... d6 {[%clk 0:03:02.7]}
7. Nc3 {[%clk 0:02:50.7]} 7... a5 {[%clk 0:03:02.7]} 8. Re1 {[%clk 0:02:17.3]}
8... Ne4 {[%clk 0:02:59.6]} 9. Qc2 {[%clk 0:02:16]} 9... Nxc3 {[%clk 0:02:58.8]}
10. Qxc3 {[%clk 0:02:15.3]} 10... Bf6 {[%clk 0:02:57.7]} 11. e4 {[%clk
0:02:13.9]} 11... c5 {[%clk 0:02:36.4]} 12. exf5 {[%clk 0:01:54.1]} 12... exf5
{[%clk 0:02:35.6]} 13. Qd3 {[%clk 0:01:50.5]} 13... Nc6 {[%clk 0:02:27.6]} 14.
Be3 {[%clk 0:01:48.5]} 14... f4 {[%clk 0:02:21.2]} 15. Bxf4 {[%clk 0:01:44]}
15... Nxd4 {[%clk 0:02:18.1]} 16. Nxd4 {[%clk 0:01:27]} 16... Bxd4 {[%clk
0:02:19]} 17. Be3 {[%clk 0:01:27.1]} 17... Qf6 {[%clk 0:01:45.4]} 18. Bxd4
{[%clk 0:00:55.9]} 18... cxd4 {[%clk 0:01:46.3]} 19. f4 {[%clk 0:00:54.2]} 19...
Bf5 {[%clk 0:01:44.8]} 20. Be4 {[%clk 0:00:48.9]} 20... Bg4 {[%clk 0:00:51.3]}
21. Bxh7+ {[%clk 0:00:45.8]} 21... Kh8 {[%clk 0:00:51.5]} 22. Qg6 {[%clk
0:00:37.2]} 22... d3 {[%clk 0:00:23.2]} 23. Qxf6 {[%clk 0:00:28.2]} 23... gxf6
{[%clk 0:00:24.1]} 24. Bxd3 {[%clk 0:00:28.5]} 24... a4 {[%clk 0:00:19.4]} 25.
Kg2 {[%clk 0:00:27.6]} 25... a3 {[%clk 0:00:19.2]} 26. b3 {[%clk 0:00:27.3]}
26... Rfe8 {[%clk 0:00:14.2]} 27. h3 {[%clk 0:00:24.4]} 27... Bd7 {[%clk
0:00:14.9]} 28. g4 {[%clk 0:00:16.2]} 28... Kg7 {[%clk 0:00:15]} 29. Kf2 {[%clk
0:00:13.6]} 29... Kf7 {[%clk 0:00:11.2]} 30. Rxe8 {[%clk 0:00:13.4]} 30... Rxe8
{[%clk 0:00:10.4]} 31. Re1 {[%clk 0:00:14.3]} 31... Rh8 {[%clk 0:00:10.8]} 32.
Kg3 {[%clk 0:00:12.7]} 32... Bc6 {[%clk 0:00:10.1]} 33. Be4 {[%clk 0:00:12.8]}
33... Re8 {[%clk 0:00:09.7]} 34. Bd5+ {[%clk 0:00:08.8]} 34... Bxd5 {[%clk
0:00:09.1]} 35. Rxe8 {[%clk 0:00:09.7]} 35... Bxc4 {[%clk 0:00:06.6]} 36. Rb8
{[%clk 0:00:08.4]} 36... Bd5 {[%clk 0:00:04.1]} 37. Ra8 {[%clk 0:00:08.5]} 1-0

[Event "Late-Titled-Tuesday-Blitz-October-03-2023"]
[Site "Chess.com"]
[Date "2023.10.03"]
[Round "2"]
[White "Veiso"]
[Black "dedpihto_v_kozhanom_palto"]
[Result "0-1"]
[WhiteElo "2366"]
[BlackElo "2696"]
[TimeControl "180+1"]
[EndTime "14:16:51 PDT"]
[Termination "dedpihto_v_kozhanom_palto won by resignation"]

1. e4 {[%clk 0:02:56.3]} 1... g6 {[%clk 0:02:56.7]} 2. d4 {[%clk 0:02:56.2]}
2... Bg7 {[%clk 0:02:57.1]} 3. Nc3 {[%clk 0:02:56.8]} 3... d6 {[%clk 0:02:54.9]}
4. Be3 {[%clk 0:02:57.4]} 4... Nc6 {[%clk 0:02:55.2]} 5. Qd2 {[%clk 0:02:55.3]}
5... e5 {[%clk 0:02:55.5]} 6. Nge2 {[%clk 0:02:54.3]} 6... f5 {[%clk 0:02:55.3]}
7. f3 {[%clk 0:02:50.4]} 7... Nf6 {[%clk 0:02:54.5]} 8. d5 {[%clk 0:02:33.5]}
8... Ne7 {[%clk 0:02:54.2]} 9. Bh6 {[%clk 0:02:32.3]} 9... O-O {[%clk
0:02:50.1]} 10. O-O-O {[%clk 0:02:28.2]} 10... b5 {[%clk 0:02:48.4]} 11. Bxg7
{[%clk 0:02:09.8]} 11... Kxg7 {[%clk 0:02:48]} 12. exf5 {[%clk 0:02:10.7]} 12...
Nxf5 {[%clk 0:02:41.1]} 13. Ne4 {[%clk 0:02:06]} 13... a5 {[%clk 0:02:30]} 14.
N2g3 {[%clk 0:01:45.1]} 14... b4 {[%clk 0:02:19.7]} 15. Nxf6 {[%clk 0:01:41.7]}
15... Qxf6 {[%clk 0:02:19.2]} 16. Ne4 {[%clk 0:01:41.8]} 16... Qe7 {[%clk
0:02:10.9]} 17. h4 {[%clk 0:01:41.9]} 17... h6 {[%clk 0:02:07]} 18. Bd3 {[%clk
0:01:34.5]} 18... Bd7 {[%clk 0:01:56.4]} 19. Kb1 {[%clk 0:01:27.5]} 19... Rab8
{[%clk 0:01:49.7]} 20. h5 {[%clk 0:01:03.6]} 20... g5 {[%clk 0:01:48.7]} 21. Nf2
{[%clk 0:01:00.8]} 21... a4 {[%clk 0:01:45.8]} 22. Ng4 {[%clk 0:00:51.5]} 22...
b3 {[%clk 0:01:37.7]} 23. cxb3 {[%clk 0:00:49.5]} 23... axb3 {[%clk 0:01:38.6]}
24. a3 {[%clk 0:00:49.8]} 24... Nd4 {[%clk 0:01:33.3]} 25. Ne3 {[%clk 0:00:47]}
25... Qf6 {[%clk 0:01:12.2]} 26. Be4 {[%clk 0:00:44.9]} 26... Rf7 {[%clk
0:00:53.9]} 27. Rc1 {[%clk 0:00:44]} 27... Bf5 {[%clk 0:00:50.8]} 28. Qd3 {[%clk
0:00:39.7]} 28... Bxe4 {[%clk 0:00:43.7]} 29. Qxe4 {[%clk 0:00:40.6]} 29... Kh8
{[%clk 0:00:40.6]} 30. Rc4 {[%clk 0:00:27.4]} 30... Qg7 {[%clk 0:00:30.8]} 31.
Rhc1 {[%clk 0:00:22.2]} 31... Re8 {[%clk 0:00:29.4]} 32. Rxd4 {[%clk 0:00:20]}
32... Rf4 {[%clk 0:00:28]} 33. Qg6 {[%clk 0:00:11.1]} 33... Qxg6+ {[%clk
0:00:25.4]} 34. hxg6 {[%clk 0:00:12]} 34... exd4 {[%clk 0:00:20.4]} 35. Ng4
{[%clk 0:00:08.5]} 35... Re7 {[%clk 0:00:13.9]} 36. Nxh6 {[%clk 0:00:07.5]}
36... d3 {[%clk 0:00:11.1]} 37. Nf7+ {[%clk 0:00:07.4]} 37... Kg7 {[%clk
0:00:11.3]} 38. Nxg5 {[%clk 0:00:08.2]} 38... d2 {[%clk 0:00:09.7]} 39. Ne6+
{[%clk 0:00:08.3]} 39... Rxe6 {[%clk 0:00:09.5]} 0-1

[Event "Late-Titled-Tuesday-Blitz-October-03-2023"]
[Site "Chess.com"]
[Date "2023.10.03"]
[Round "2"]
[White "microbear"]
[Black "Rozhkov_V"]
[Result "1/2-1/2"]
[WhiteElo "2191"]
[BlackElo "2438"]
[TimeControl "180+1"]
[EndTime "14:16:52 PDT"]
[Termination "Game drawn by repetition"]

1. e4 {[%clk 0:03:00.9]} 1... e6 {[%clk 0:02:53.3]} 2. d4 {[%clk 0:03:00.2]}
2... d5 {[%clk 0:02:53.5]} 3. exd5 {[%clk 0:02:55.4]} 3... exd5 {[%clk 0:02:53]}
4. Bd3 {[%clk 0:02:54.5]} 4... c5 {[%clk 0:02:52.4]} 5. dxc5 {[%clk 0:02:51.8]}
5... Bxc5 {[%clk 0:02:52.9]} 6. Nf3 {[%clk 0:02:51.5]} 6... Nf6 {[%clk
0:02:46.3]} 7. O-O {[%clk 0:02:49.7]} 7... O-O {[%clk 0:02:46.4]} 8. h3 {[%clk
0:02:49.6]} 8... h6 {[%clk 0:02:45.8]} 9. Nbd2 {[%clk 0:02:44.5]} 9... Nc6
{[%clk 0:02:45.7]} 10. Nb3 {[%clk 0:02:44.6]} 10... Bb6 {[%clk 0:02:45.7]} 11.
c3 {[%clk 0:02:44.7]} 11... Ne4 {[%clk 0:02:43.8]} 12. Nbd4 {[%clk 0:02:27.5]}
12... Qf6 {[%clk 0:02:39]} 13. Be3 {[%clk 0:02:17.8]} 13... Re8 {[%clk
0:02:22.1]} 14. Qb3 {[%clk 0:02:02]} 14... Qg6 {[%clk 0:02:06.9]} 15. Kh1 {[%clk
0:01:47.7]} 15... Ng3+ {[%clk 0:01:30.8]} 16. fxg3 {[%clk 0:01:48.6]} 16... Qxd3
{[%clk 0:01:31.4]} 17. Bg1 {[%clk 0:01:35.3]} 17... Nxd4 {[%clk 0:01:25.6]} 18.
Nxd4 {[%clk 0:01:32.7]} 18... Qxg3 {[%clk 0:01:20.2]} 19. Rf3 {[%clk 0:01:22.6]}
19... Qg6 {[%clk 0:01:18.7]} 20. Qxd5 {[%clk 0:01:07]} 20... Rd8 {[%clk
0:01:16.1]} 21. Qe5 {[%clk 0:00:55.4]} 21... f6 {[%clk 0:01:01.2]} 22. Qf4
{[%clk 0:00:47.7]} 22... Bd7 {[%clk 0:00:54.3]} 23. Re1 {[%clk 0:00:45.1]} 23...
Re8 {[%clk 0:00:38.5]} 24. Rxe8+ {[%clk 0:00:44]} 24... Rxe8 {[%clk 0:00:39.4]}
25. Rg3 {[%clk 0:00:44.4]} 25... Qf7 {[%clk 0:00:36.5]} 26. Qxh6 {[%clk
0:00:40.6]} 26... Re1 {[%clk 0:00:32.5]} 27. Qd2 {[%clk 0:00:36.6]} 27... Ra1
{[%clk 0:00:27]} 28. a3 {[%clk 0:00:34.1]} 28... Bc6 {[%clk 0:00:24]} 29. Kh2
{[%clk 0:00:30.7]} 29... Bc7 {[%clk 0:00:23.6]} 30. Nxc6 {[%clk 0:00:26]} 30...
Bxg3+ {[%clk 0:00:22.3]} 31. Kxg3 {[%clk 0:00:25.7]} 31... Qc7+ {[%clk
0:00:22.6]} 32. Kh4 {[%clk 0:00:20.7]} 32... Rxg1 {[%clk 0:00:17.3]} 33. Qd5+
{[%clk 0:00:18.1]} 33... Qf7 {[%clk 0:00:13.8]} 34. Ne7+ {[%clk 0:00:15.5]}
34... Kf8 {[%clk 0:00:09.7]} 35. Qd8+ {[%clk 0:00:14.6]} 35... Qe8 {[%clk
0:00:10.4]} 36. Ng6+ {[%clk 0:00:14.7]} 36... Kf7 {[%clk 0:00:11.1]} 37. Nh8+
{[%clk 0:00:13.9]} 37... Kf8 {[%clk 0:00:09.9]} 38. Ng6+ {[%clk 0:00:14.4]}
38... Kf7 {[%clk 0:00:09.7]} 39. Nh8+ {[%clk 0:00:13.4]} 39... Kf8 {[%clk
0:00:06]} 40. Ng6+ {[%clk 0:00:13.3]} 1/2-1/2

[Event "Late-Titled-Tuesday-Blitz-October-03-2023"]
[Site "Chess.com"]
[Date "2023.10.03"]
[Round "2"]
[White "APOKALIPSA13"]
[Black "Good_Knight_Kiss"]
[Result "1-0"]
[WhiteElo "2175"]
[BlackElo "2423"]
[TimeControl "180+1"]
[EndTime "14:16:55 PDT"]
[Termination "APOKALIPSA13 won on time"]

1. e4 {[%clk 0:03:00.9]} 1... c5 {[%clk 0:02:59.4]} 2. Nf3 {[%clk 0:03:01.1]}
2... d6 {[%clk 0:02:59.3]} 3. d4 {[%clk 0:03:01.5]} 3... cxd4 {[%clk 0:03:00.2]}
4. Nxd4 {[%clk 0:03:02]} 4... Nf6 {[%clk 0:03:00.7]} 5. Nc3 {[%clk 0:03:02.4]}
5... a6 {[%clk 0:03:01.3]} 6. Rg1 {[%clk 0:03:02]} 6... e5 {[%clk 0:03:00.6]} 7.
Nb3 {[%clk 0:03:01.9]} 7... Be6 {[%clk 0:02:56.8]} 8. g4 {[%clk 0:03:02]} 8...
h6 {[%clk 0:02:56.6]} 9. h4 {[%clk 0:03:01.8]} 9... d5 {[%clk 0:02:55.8]} 10.
exd5 {[%clk 0:02:57.8]} 10... Nxd5 {[%clk 0:02:55.5]} 11. Nxd5 {[%clk
0:02:56.2]} 11... Bxd5 {[%clk 0:02:42.8]} 12. Bg2 {[%clk 0:02:46.5]} 12... Bxg2
{[%clk 0:02:37.3]} 13. Qxd8+ {[%clk 0:02:47.4]} 13... Kxd8 {[%clk 0:02:37.8]}
14. Rxg2 {[%clk 0:02:47.4]} 14... Be7 {[%clk 0:02:32.5]} 15. h5 {[%clk
0:02:19.5]} 15... Nd7 {[%clk 0:02:19.9]} 16. Be3 {[%clk 0:02:19]} 16... Rc8
{[%clk 0:02:15.4]} 17. O-O-O {[%clk 0:02:16.9]} 17... Bg5 {[%clk 0:01:41.1]} 18.
f4 {[%clk 0:02:09.4]} 18... exf4 {[%clk 0:01:12.4]} 19. Bb6+ {[%clk 0:01:48.9]}
19... Ke8 {[%clk 0:00:39.8]} 20. Re2+ {[%clk 0:01:46.6]} 20... Kf8 {[%clk
0:00:36.6]} 21. Rxd7 {[%clk 0:01:42.9]} 21... f3+ {[%clk 0:00:36.8]} 22. Red2
{[%clk 0:01:42.6]} 22... Rc6 {[%clk 0:00:14.8]} 23. Bf2 {[%clk 0:01:27.4]} 23...
Kg8 {[%clk 0:00:08.3]} 24. Nd4 {[%clk 0:01:11.9]} 24... Rc8 {[%clk 0:00:02.8]}
25. Nxf3 {[%clk 0:01:10.8]} 25... Bxd2+ {[%clk 0:00:02.5]} 26. Kxd2 {[%clk
0:01:10.2]} 26... f6 {[%clk 0:00:02]} 27. Bd4 {[%clk 0:01:06.1]} 27... Kh7
{[%clk 0:00:01.3]} 28. Bxf6 {[%clk 0:01:06]} 28... Rhg8 {[%clk 0:00:02.1]} 29.
g5 {[%clk 0:00:53.6]} 29... Rcf8 {[%clk 0:00:02.1]} 30. g6+ {[%clk 0:00:51.6]}
30... Kh8 {[%clk 0:00:02.4]} 31. Ne5 {[%clk 0:00:51.4]} 31... Rxf6 {[%clk
0:00:02.1]} 32. Nf7+ {[%clk 0:00:50.2]} 32... Rxf7 {[%clk 0:00:02.5]} 33. Rxf7
{[%clk 0:00:44.7]} 33... b6 {[%clk 0:00:02.5]} 34. Rd7 {[%clk 0:00:41.7]} 34...
a5 {[%clk 0:00:01.9]} 35. c4 {[%clk 0:00:40.8]} 35... Rc8 {[%clk 0:00:01.9]} 36.
b3 {[%clk 0:00:40.1]} 36... Kg8 {[%clk 0:00:02.4]} 37. Kd3 {[%clk 0:00:35.6]}
37... Kf8 {[%clk 0:00:02.8]} 38. Rd6 {[%clk 0:00:35.4]} 38... Rc5 {[%clk
0:00:02.7]} 39. Rd5 {[%clk 0:00:33.9]} 39... Rc6 {[%clk 0:00:01.8]} 40. Kd4
{[%clk 0:00:30.6]} 40... Ke7 {[%clk 0:00:02.2]} 41. a3 {[%clk 0:00:29.7]} 41...
Rf6 {[%clk 0:00:02.4]} 42. c5 {[%clk 0:00:28.4]} 42... Rf4+ {[%clk 0:00:02.1]}
43. Ke5 {[%clk 0:00:28.2]} 43... Rh4 {[%clk 0:00:02]} 44. cxb6 {[%clk
0:00:27.4]} 44... Rxh5+ {[%clk 0:00:02.4]} 45. Kd4 {[%clk 0:00:27.8]} 45... Rh3
{[%clk 0:00:02.5]} 46. Kc4 {[%clk 0:00:27.2]} 46... Rh4+ {[%clk 0:00:02.3]} 47.
Kc5 {[%clk 0:00:27.6]} 47... Rh3 {[%clk 0:00:02.2]} 48. b4 {[%clk 0:00:28.1]}
1-0